Cogmind - Beta 17.1 @@@ ROGUE MODE // 2026.09.12 @ 16:11:36 Player: fai Result: Destroyed by S-10 Pest with Light Assault Rifle Performance ------------- Evolutions (0) 0 Regions Visited (1) 200 Robots Destroyed (10) 50 Value Destroyed (158) 158 Prototype IDs (0) 0 Alien Tech Used (0) 0 Bonus (0) 0 TOTAL SCORE: 408 Bonus ------- None Cogmind --------- Core Integrity 0/250 Matter 292/300 Energy 250/250 System Corruption 0% Temperature Cool (0) Movement Rolling (100) Location -10/Materials Parts ------- > --- POWER (1) -------- Ion Engine > --- PROPULSION (2) --- Compact Wheel > --- UTILITY (2) ------ Small Storage Unit > --- WEAPON (2) ------- Light Assault Rifle > --- INVENTORY (8) ---- Light Ion Engine Light Ion Engine Wheel Wheel Compact Wheel Seismic Detector Peak State ------------ > --- POWER ------------ Ion Engine > --- PROPULSION ------- Compact Wheel Compact Wheel > --- UTILITY ---------- Small Storage Unit Improved Terrain Scanner > --- WEAPON ----------- EM Pulse Gun Medium Laser > --- INVENTORY -------- Light Ion Engine [Rating: 9] Favorites ----------- Power Ion Engine Engine Ion Engine Propulsion Compact Wheel Wheel Compact Wheel Utility Small Storage Unit Device Improved Terrain Scanner Storage Small Storage Unit Weapon Medium Laser Energy Gun Medium Laser Ballistic Gun Light Assault Rifle Build | -11 -10 ------- Run | Yrd Mat Slots Evolved . | . . Power . | . . Propulsion . | . . Utility . | . . Weapon . | . . Parts Attached 9 | 8 1 Power 2 | 2 . Engine 2 | 2 . Core . | . . Reactor . | . . Propulsion 2 | 2 . Treads . | . . Leg . | . . Wheel 2 | 2 . Hover . | . . Flight . | . . Utility 2 | 2 . Device 1 | 1 . Storage 1 | 1 . Processor . | . . Hackware . | . . Protection . | . . Artifact . | . . Weapon 3 | 2 1 Energy Gun 2 | 2 . Energy Cannon . | . . Ballistic Gun 1 | . 1 Ballistic Cannon . | . . Launcher . | . . Special Weapon . | . . Impact Weapon . | . . Slashing Weapon . | . . Piercing Weapon . | . . Special Melee Weapon . | . . Unidentified Prototypes . | . . Parts Lost 4 | . 4 Power . | . . Propulsion 1 | . 1 Utility 1 | . 1 Weapon 2 | . 2 Highest Loss Streak 2 | . 2 To Critical Strikes . | . . Average Backups 4 | 2 6 Power 1 | 1 2 Propulsion 2 | 1 3 Utility . | . 1 Weapon . | . . Tool/Special . | . . Unused Backups 5 | . 5 Power 1 | . 1 Propulsion 3 | . 3 Utility 1 | . 1 Weapon . | . . Tool/Special . | . . Average Slot Usage (%) 85 | . 85 Engine 14 | . 14 Wheel 24 | . 24 Device 12 | . 12 Storage 14 | . 14 Energy Gun 17 | . 17 Ballistic Gun 1 | . 1 Peak Build Rating 9 | 9 9 Average Rating 7 | 7 7 On Entrance 4 | . 9 Avg Prop Armor Cover (%) . | . . Naked Turns . | . . Heaviest Build 15 | 15 15 Greatest Support 32 | 32 32 Greatest Overweight (x) . | . . Average Overweight (x) . | . . Largest Inventory Capacity 8 | 8 8 Average Capacity 7 | 7 8 Most Carried 6 | 6 6 Average Carried 4 | 2 6 Final Capacity 8 | 8 8 Final Carried 6 | 6 6 Class Distribution -------------------- 100% | Mutant Dominant Class ---------------- Mutant | -10/Materials Resources | -11 -10 ----------- Run | Yrd Mat Matter Collected 292 | 280 12 Remotely . | . . Salvage Created 315 | 154 161 Parts 21 | 11 10 Haulers Intercepted . | . . Recyclers Shooed 1 | 1 . Parts Field Recycled . | . . Retrieved Matter . | . . Parts Self-Destructed . | . . Prevented . | . . Parts Restored . | . . Kills | -11 -10 ------- Run | Yrd Mat Combat Hostiles Destroyed 6 | . 6 Guns 6 | . 6 Classes Destroyed 4 | 2 2 Tunneler 3 | 3 . Recycler 1 | 1 . Swarmer 4 | . 4 Grunt 2 | . 2 Best Kill Streak 4 | 2 4 Combat Bots Only 4 | . 4 Max Kills in Single Turn 1 | 1 1 Gunslinging . | . . Exploded . | . . Melee . | . . Uniques/NPCs Destroyed . | . . Combat | -11 -10 -------- Run | Yrd Mat Hostile Shots Fired 78 | . 78 Missed 19 | . 19 Hits 59 | . 59 Projectile 59 | . 59 Critical Strikes 1 | . 1 Damage Taken 561 | . 561 Core 253 | . 253 Absorbed by Shields . | . . Core Remaining (%) 100 | 100 . Volleys Fired 49 | 11 38 Largest 2 | 2 2 Hottest 90 | 90 90 Shots Fired 68 | 22 46 Gun 68 | 22 46 Cannon . | . . Launcher . | . . Special . | . . Kinetic 10 | . 10 Thermal 39 | 11 28 Explosive . | . . Electromagnetic 19 | 11 8 Robot Hit Streak 8 | 2 8 Robot Miss Streak 3 | 3 3 Penetration Max . | . . Secondary Targets . | . . Shots Hit Robots 45 | 12 33 Core Hits 16 | 5 11 Critical Kills . | . . Critical Parts Destroyed . | . . Critical Strikes 1 | . 1 Corrupt 1 | . 1 Melee Attacks . | . . Impact . | . . Slashing . | . . Piercing . | . . Sneak Attacks . | . . Combat Hostiles . | . . Follow-up Attacks . | . . Damage Inflicted 607 | 158 449 Guns 564 | 158 406 Cannons . | . . Explosions 41 | . 41 Melee . | . . Ramming 2 | . 2 Kinetic 43 | . 43 Thermal 382 | 62 320 Explosive . | . . Electromagnetic 180 | 96 84 Impact . | . . Slashing . | . . Piercing . | . . Highest Corruption . | . . Average Corruption . | . . Corruption Purged . | . . Corruption Blocked . | . . Overload Shots . | . . Overflow Damage 15 | . 15 Projectiles . | . . Explosions 15 | . 15 Melee . | . . Knockbacks . | . . Impact . | . . Kinetic . | . . Secondary . | . . Self-Inflicted Damage 20 | . 20 Shots 1 | . 1 Rammed 1 | . 1 Targets Rammed 1 | . 1 Kicked . | . . Crushed . | . . Highest Temperature 316 | 120 316 Average Temperature 84 | 34 109 Received Heat Transfer 156 | . 156 Siege Activations . | . . Martial Activations . | . . Shielding Activations . | . . Robots Disrupted . | . . Combat Hostiles . | . . Robots Corrupted . | . . Combat Hostiles . | . . Parts Fried . | . . Impact Corruptions . | . . Robots Melted . | . . Combat Hostiles . | . . Parts Melted 2 | . 2 Heat Transferred 1049 | 185 864 Parts Sabotaged . | . . Parts Stolen . | . . Parts Stripped . | . . Power Chain Reactions 1 | . 1 Alert | -11 -10 ------- Run | Yrd Mat Maximum Alert Level . | . . Low Security (%) 100 | 100 100 Level 1 . | . . Level 2 . | . . Level 3 . | . . Level 4 . | . . Level 5 . | . . High Security . | . . Max Security . | . . Peak Influence 90 | 5 90 Initial . | . . Average 14 | 1 20 Influence Increases 224 | 20 204 Destroy 0b10 Robot/C 120 | . 120 Destroy 0b10 Robot/NC 20 | 20 . Destroy Leader 30 | . 30 Successful Hack 5 | . 5 Disable Machine 15 | . 15 Destroy Structure 4 | . 4 Lose Combat Pursuer 30 | . 30 Influence Decreases 144 | 20 124 Time Decay 104 | 20 84 Lost Part 40 | . 40 Squads Dispatched 1 | . 1 Investigation . | . . Extermination . | . . Reinforcement 1 | . 1 Assault . | . . Garrison . | . . Intercept . | . . Searches Triggered . | . . Construction Impeded . | . . Haulers Reinforced . | . . Active Scanning Responses . | . . Cargo Convoy Interrupts . | . . Stealth | -11 -10 --------- Run | Yrd Mat Distress Signals 1 | . 1 Communications Jammed . | . . Distress Signals . | . . Times Spotted 13 | . 13 Peak Tracking Total 6 | . 6 Tactical Retreats 2 | . 2 Traps | -11 -10 ------- Run | Yrd Mat Traps Triggered . | . . Indirectly . | . . Trap Hack Attempts . | . . Triggered . | . . Disarmed . | . . Reprogrammed . | . . Reused . | . . Traps Extracted . | . . Installed . | . . Triggered . | . . Machines | -11 -10 ---------- Run | Yrd Mat Machines Disabled 1 | . 1 Max in Single Turn 1 | . 1 Machines Repaired . | . . Machines Dismantled . | . . Machines Sabotaged . | . . Overloaded Fab Kills . | . . Hacking | -11 -10 --------- Run | Yrd Mat Machines Accessed 1 | . 1 Terminals 1 | . 1 Fabricators . | . . Repair Stations . | . . Recycling Units . | . . Scanalyzers . | . . Garrison Access . | . . Total Hacks 2 | . 2 Successful 1 | . 1 Failed 1 | . 1 Catastrophic 1 | . 1 Database Lockouts . | . . Manual 2 | . 2 Terminals 2 | . 2 Fabricators . | . . Repair Stations . | . . Recycling Units . | . . Scanalyzers . | . . Garrison Access . | . . Terminal Hacks . | . . Fabricator Hacks . | . . Repair Station Hacks . | . . Recycling Unit Hacks . | . . Scanalyzer . | . . Garrison Access Hacks . | . . Unauthorized Hacks 1 | . 1 Terminals 1 | . 1 Botnet 1 | . 1 Fabricators . | . . Repair Stations . | . . Recycling Units . | . . Scanalyzers . | . . Garrison Access . | . . Data Cores Recovered . | . . Used . | . . Hacking Detections 1 | . 1 Full Trace Events . | . . Feedback Events . | . . Feedback Blocked . | . . Robot Schematics Acquired . | . . Robots Built . | . . Authchips . | . . Time . | . . Total Robot Build Rating . | . . Part Schematics Acquired . | . . Parts Built . | . . Authchips . | . . Time . | . . Total Part Build Rating . | . . Part Studies Acquired . | . . Parts Repaired . | . . Time . | . . Parts Recycled . | . . Recycled Matter . | . . Retrieved Matter . | . . Retrieved Components . | . . Parts Scanalyzed . | . . Part Schematics Acquired . | . . Parts Damaged . | . . Bothacking | -11 -10 ------------ Run | Yrd Mat Used RIF Installer . | . . Robots Hacked . | . . Non-combat . | . . Combat . | . . Robot Hacks Applied . | . . Relay Couplers Released . | . . Fabnet Peak Effective % . | . . Robots Rewired . | . . Allies Hacked . | . . Hacks Repelled . | . . Allies | -11 -10 -------- Run | Yrd Mat Total Allies . | . . Largest Group . | . . Highest-Rated Group . | . . Highest-Rated Ally . | . . Total Orders . | . . Ally Attacks . | . . Total Damage . | . . Kills . | . . Allies Corrupted . | . . Allies Melted . | . . Intel | -11 -10 ------- Run | Yrd Mat Active Infowar (turns) 299 | 81 218 Terrain 299 | 81 218 Robot Analysis Total . | . . Derelict Logs Recovered . | . . Drone Launches . | . . Drone Recoveries . | . . Exploration | -11 -10 ------------- Run | Yrd Mat Turns Passed 371 | 126 245 Spaces Moved 220 | 77 143 Core 2 | 2 . Treads . | . . Legs . | . . Wheels 218 | 75 143 Hover . | . . Flight . | . . Fastest Speed 50 | 50 100 Average Speed 99 | 98 100 Slowest Speed 100 | 100 100 Overloaded Moves . | . . Propulsion Burnouts . | . . Robots Hopped . | . . Potential Cave-ins . | . . Cave-ins Triggered . | . . Exploration Rate (%) 14 | 4 24 Regions Visited 1 Branch Regions . Pre-discovered Areas . | . . Known Exits Taken . | . . Unknown Exits Taken 1 | 1 . Scrap Searched . | . . Spaces Dug . | . . Terrain Destroyed 3 | . 3 Melee . | . . Projectile . | . . AOE 3 | . 3 Terrain Rammed . | . . Walls Destroyed . | . . Machines Disabled . | . . Actions | -11 -10 --------- Run | Yrd Mat Total 301 | 100 201 Wait 18 | . 18 Move 219 | 76 143 Hop . | . . Pick Up 5 | 5 . Fast Attach 8 | 7 1 Attach . | . . Detach . | . . Swap 1 | 1 . Drop . | . . Fire 49 | 11 38 Melee . | . . Ram 1 | . 1 Kick . | . . Crush . | . . Escape Stasis . | . . Rewire . | . . Trap . | . . Miscellaneous . | . . Route ------- -11/Scrapyard -10/Materials (discovered 1 exit: [*Mat]) History --------- Turn | Location | Event 27 | -11/Scrapyard | Discovered new exit (range 15) 127 | -11/Scrapyard | Entered Materials 303 | -10/Materials | Core integrity fell below 50% 318 | -10/Materials | Build established: Mutant 331 | -10/Materials | Discovered new exit (range 5) 346 | -10/Materials | Core integrity fell below 20% 372 | -10/Materials | Destroyed by S-10 Pest with Light Assault Rifle Last Messages --------------- 00316_ Critical hit (Burn: +37). 00317_ Imp. Heat Sink melted. 00317_ G-47 Trooper destroyed. 00322_ K-01 Serf collects debris. 00328_ G-34 Mercenary destroyed. 00330_ K-01 Serf collects debris. 00331_ EXIT=FOUND 00332_ W-16 Scout sends out distress signal. 00334_ K-01 Serf collects debris. 00340_ Med. Laser destroyed. 00340_ Slammed into S-10 Pest. 00343_ K-01 Serf collects debris. 00345_ Imp. Terrain Scanner destroyed. 00346_ Acquired Lgt. Assault Rifle. 00348_ K-01 Serf collects debris. 00354_ S-10 Pest destroyed. 00356_ Acquired 12 matter. 00356_ K-01 Serf collects debris. 00362_ S-10 Pest destroyed. 00363_ K-01 Serf collects debris. Map ----- +----------------------------------------------------+ | ?????????????????????????????????????????????? | | ?????????????????????????????????????????????? | | ?????????????????????????????????????????????? | | ?????????????????????????????????????????????? | | ?????????????????????????????????????????????? | | ?????????????????????????????????????????????? | | ??????????????? ???????????????????????????? | | ??????????????? ????#??????????????????????? | | ??????????????? ???????????????????????????? | | ??????????????# # ?? ??????????????????????? | | ??????????????# #??? ??????????????????????? | | ??????????????# #??????????????????????????? | | ?????? ???????# #???????????#??????????????? | | ????? ????????# #? ????"???#???????????????? | | ??????????????# +??????????????????????????? | | ????????#?????# #???? ?????????????????????? | | ?????#????#???# #?????????#????????????????? | | ??????????##### ########???????????????????? | | ??????????# ? ??? ???????????????? | | ??????????? < ??? ?????????#??????????? | | ?????#??????? =%! ???? ????#??? #??????????? | | ???????????#####+#####? #????????????????????? | | ???????????# %[=%* #? #???????? ???????????? | | ???????????# = ## ##???????????????????? | | ??????????## %=%k[#=s ######? ????????????? | | ???????????# w ! %@%= + ""??? ????? | | ???#???????# #* =######??????? #???? | | ??????????## #####????? ?????? #???? | | ???????????# #???????????????# #???? | | ???????????# #??????????????? #???? | | ???????##?########+###????#??????? ?? #???? | | ?????#?????#?????# #????????????? ??? #???? | | ?????#####???????# ##??##########????# +???? | | ?????????????#?#?# #???# #????# ####? | | ?#????????######## #???# ###### ?? | | ??????????# + #???# # # ??? | | ???#??????# """ # #???# [ # T # #??#? | | ??????????# """ # #???# # # #???? | | ?########## """ # ??+ # ] # #???? | | ?# # # ###?# # + #???? | | ?# """" # """ # ###?? # # #???? | | ?# """" # """ # #?????? ?# # #???? | | ?# """" # """ # #########+#### # #???? | | ?# # # + #####???? | | ?# """" #^ # #########???????? | | ## # + ##+#####+#####????????????? | | ?# # # ## [ #????????????? | | ## ####### ## #??????#?????? | | ?#####"#/####### # #????????????? | | #????# # ##???#???????? | +----------------------------------------------------+ Best States ------------- Heat Dissipation 25 Energy Generation 10 Energy Capacity 250 Matter Stores 300 Matter Capacity 300 Sight Range 16 Terrain Scan Range 16 Terrain Scan Density 10 Evasion (%) 40 Item Schematics ----------------- None Robot Schematics ------------------ None Fabricated ------------ Nothing Repaired ---------- Nothing Studied --------- None Alien Tech Used ----------------- None Achievements -------------- Ghost 'Em Challenges ------------ None Game ------ Seed JunkVortexSource Manual? 0 Play Time 00:07:02 Cumulative 144.9 hours Start 2026.09.12 @ 16:03:28 End 2026.09.12 @ 16:11:36 Sessions 1 Manual Loads 0 Difficulty Rogue Special Mode None Game No. 65 Rogue 65 Adventurer 0 Explorer 0 Win Type - Total 2 Types 2/0/0/0/0/0/0/0/0/0 Lore% 18 Gallery% 50 Achievement% 26 Wizard Run 0 Options --------- Layout 1 ASCII 0 Keyboard 0 Movement Arrows Keybinds 0 Fullscreen 1 Font 24/Smallcaps Map View 50x35 Zoom Use 0% Tactical HUD 1 Map Filters NONE Filters NONE Steam 1 RUN: cef849db-b0ea-423d-b187-03c960c53788